[Event "Early-Titled-Tuesday-Blitz-May-28-2024"]
[Site "Chess.com"]
[Date "2024.05.28"]
[Round "10"]
[White "dmosesov"]
[Black "McCarthyStone"]
[Result "1-0"]
[WhiteElo "2665"]
[BlackElo "2473"]
[TimeControl "180+1"]
[EndTime "9:59:43 PDT"]
[Termination "dmosesov won by resignation"]

1. Nf3 {[%clk 0:03:00.9]} 1... d6 {[%clk 0:02:59.5]} 2. d4 {[%clk 0:02:59.4]}
2... Nf6 {[%clk 0:03:00]} 3. b3 {[%clk 0:02:59.1]} 3... g6 {[%clk 0:03:00.5]} 4.
Bb2 {[%clk 0:02:59.7]} 4... Bg7 {[%clk 0:03:01.4]} 5. g3 {[%clk 0:02:59.9]} 5...
O-O {[%clk 0:03:02.3]} 6. Bg2 {[%clk 0:03:00.3]} 6... Bf5 {[%clk 0:03:01.2]} 7.
O-O {[%clk 0:03:00.3]} 7... Qd7 {[%clk 0:03:01.7]} 8. Nh4 {[%clk 0:02:40.1]}
8... Bh3 {[%clk 0:02:58.7]} 9. Bxb7 {[%clk 0:02:38.5]} 9... Bxf1 {[%clk
0:02:58.8]} 10. Qxf1 {[%clk 0:02:37.9]} 10... Nc6 {[%clk 0:02:55]} 11. Bxa8
{[%clk 0:02:33.1]} 11... Rxa8 {[%clk 0:02:55.9]} 12. Nd2 {[%clk 0:02:29.5]}
12... a5 {[%clk 0:02:50.2]} 13. a4 {[%clk 0:02:26.4]} 13... Nb4 {[%clk
0:02:40.6]} 14. Rc1 {[%clk 0:02:26.2]} 14... h5 {[%clk 0:02:32.5]} 15. e3 {[%clk
0:02:24.8]} 15... Rb8 {[%clk 0:02:30.8]} 16. Nc4 {[%clk 0:02:22.3]} 16... Ne4
{[%clk 0:02:16]} 17. f3 {[%clk 0:02:05]} 17... Ng5 {[%clk 0:01:58.4]} 18. Nxa5
{[%clk 0:01:55.6]} 18... Nh3+ {[%clk 0:01:54.6]} 19. Kh1 {[%clk 0:01:52.1]}
19... g5 {[%clk 0:01:53]} 20. Ng2 {[%clk 0:01:51.9]} 20... Qf5 {[%clk
0:01:47.4]} 21. Nc4 {[%clk 0:01:50.8]} 21... d5 {[%clk 0:01:38.3]} 22. Nd2
{[%clk 0:01:46.3]} 22... Nxc2 {[%clk 0:01:30.7]} 23. e4 {[%clk 0:00:59.3]} 23...
dxe4 {[%clk 0:01:25.7]} 24. Rxc2 {[%clk 0:00:59.9]} 24... exf3 {[%clk
0:01:19.6]} 25. Rc5 {[%clk 0:00:57.2]} 25... fxg2+ {[%clk 0:01:12.5]} 26. Kxg2
{[%clk 0:00:58.1]} 26... Qg4 {[%clk 0:00:52.9]} 27. Qf3 {[%clk 0:00:40.8]} 27...
Nf4+ {[%clk 0:00:51.5]} 28. Kf2 {[%clk 0:00:38.6]} 28... Nh3+ {[%clk 0:00:46]}
29. Kg2 {[%clk 0:00:30.9]} 29... Nf4+ {[%clk 0:00:43.5]} 30. Kf2 {[%clk
0:00:27.5]} 30... Qxf3+ {[%clk 0:00:25]} 31. Kxf3 {[%clk 0:00:27.2]} 31... Ne6
{[%clk 0:00:25.7]} 32. Rc4 {[%clk 0:00:25.1]} 32... g4+ {[%clk 0:00:16.9]} 33.
Ke2 {[%clk 0:00:22.6]} 33... c5 {[%clk 0:00:16.8]} 34. d5 {[%clk 0:00:21.3]}
34... Nd4+ {[%clk 0:00:13.9]} 35. Bxd4 {[%clk 0:00:18.4]} 35... Bxd4 {[%clk
0:00:14.8]} 36. a5 {[%clk 0:00:15.8]} 36... Rb5 {[%clk 0:00:10.4]} 37. Ra4
{[%clk 0:00:15.5]} 37... Rb7 {[%clk 0:00:02.7]} 38. a6 {[%clk 0:00:15.9]} 38...
Ra7 {[%clk 0:00:03.6]} 39. Nc4 {[%clk 0:00:07.9]} 39... Kf8 {[%clk 0:00:02.4]}
40. Kd3 {[%clk 0:00:05]} 40... Ke8 {[%clk 0:00:02.9]} 41. d6 {[%clk 0:00:04.8]}
41... exd6 {[%clk 0:00:01]} 42. Nxd6+ {[%clk 0:00:05.7]} 42... Kd7 {[%clk
0:00:01.9]} 43. Nb5 {[%clk 0:00:04.2]} 43... Ra8 {[%clk 0:00:02.7]} 44. Nxd4
{[%clk 0:00:04.7]} 44... cxd4 {[%clk 0:00:03.6]} 45. Kxd4 {[%clk 0:00:05]} 45...
Kd6 {[%clk 0:00:04.5]} 46. b4 {[%clk 0:00:04.1]} 46... f5 {[%clk 0:00:04.8]} 47.
b5 {[%clk 0:00:04]} 47... Kc7 {[%clk 0:00:03.8]} 48. Kc5 {[%clk 0:00:03.5]}
48... Re8 {[%clk 0:00:04.2]} 49. b6+ {[%clk 0:00:04.1]} 49... Kb8 {[%clk
0:00:04.8]} 50. Rd4 {[%clk 0:00:04.5]} 50... Rc8+ {[%clk 0:00:03.7]} 51. Kb5
{[%clk 0:00:04.7]} 51... Re8 {[%clk 0:00:03.7]} 52. Rd7 {[%clk 0:00:04.8]} 52...
Re5+ {[%clk 0:00:03.7]} 53. Kc4 {[%clk 0:00:04.6]} 53... Re4+ {[%clk 0:00:02.4]}
54. Kd5 {[%clk 0:00:04.5]} 54... Re8 {[%clk 0:00:03.3]} 55. Rf7 {[%clk
0:00:03.7]} 55... h4 {[%clk 0:00:02.4]} 56. Rxf5 {[%clk 0:00:03.7]} 56... hxg3
{[%clk 0:00:03.3]} 57. hxg3 {[%clk 0:00:04.3]} 57... Rd8+ {[%clk 0:00:03.9]} 58.
Kc6 {[%clk 0:00:04.9]} 58... Rc8+ {[%clk 0:00:04.5]} 59. Kb5 {[%clk 0:00:05.5]}
59... Re8 {[%clk 0:00:05.2]} 60. Rg5 {[%clk 0:00:06]} 60... Ka8 {[%clk
0:00:05.1]} 61. Rxg4 {[%clk 0:00:04.7]} 61... Re5+ {[%clk 0:00:05.8]} 62. Kb4
{[%clk 0:00:04.4]} 62... Re8 {[%clk 0:00:05.3]} 63. Rg6 {[%clk 0:00:04]} 63...
Rb8 {[%clk 0:00:05.5]} 64. Ka5 {[%clk 0:00:02.4]} 64... Rf8 {[%clk 0:00:05.4]}
65. Rg5 {[%clk 0:00:02.6]} 65... Rc8 {[%clk 0:00:04.5]} 66. g4 {[%clk
0:00:02.8]} 66... Rd8 {[%clk 0:00:04.8]} 67. Rf5 {[%clk 0:00:03.3]} 67... Kb8
{[%clk 0:00:05.2]} 68. g5 {[%clk 0:00:03.9]} 68... Kc8 {[%clk 0:00:05.8]} 69. g6
{[%clk 0:00:04.4]} 69... Rd1 {[%clk 0:00:06.1]} 70. Rf8+ {[%clk 0:00:04.4]}
70... Kd7 {[%clk 0:00:06.4]} 71. b7 {[%clk 0:00:04.8]} 71... Ra1+ {[%clk
0:00:03.6]} 72. Kb6 {[%clk 0:00:05.5]} 72... Rb1+ {[%clk 0:00:04.5]} 73. Ka7
{[%clk 0:00:06]} 73... Ke7 {[%clk 0:00:05.1]} 74. b8=Q {[%clk 0:00:06.2]} 74...
Rb6 {[%clk 0:00:03.8]} 75. Qxb6 {[%clk 0:00:06.1]} 75... Kxf8 {[%clk 0:00:03.3]}
76. Qc7 {[%clk 0:00:06.2]} 1-0

[Event "Early-Titled-Tuesday-Blitz-May-28-2024"]
[Site "Chess.com"]
[Date "2024.05.28"]
[Round "10"]
[White "Timerkhanov"]
[Black "xasid81"]
[Result "0-1"]
[WhiteElo "2733"]
[BlackElo "2605"]
[TimeControl "180+1"]
[EndTime "9:59:58 PDT"]
[Termination "xasid81 won by checkmate"]

1. d4 {[%clk 0:03:00.9]} 1... g6 {[%clk 0:02:55.9]} 2. e4 {[%clk 0:02:59.6]}
2... Bg7 {[%clk 0:02:56.1]} 3. Nc3 {[%clk 0:02:59.8]} 3... c6 {[%clk 0:02:56.4]}
4. h4 {[%clk 0:02:58.4]} 4... h5 {[%clk 0:02:55.7]} 5. Bg5 {[%clk 0:02:57]} 5...
Qb6 {[%clk 0:02:53.7]} 6. Nge2 {[%clk 0:02:54.8]} 6... Qxb2 {[%clk 0:02:49.8]}
7. Rb1 {[%clk 0:02:54.3]} 7... Qa3 {[%clk 0:02:49.6]} 8. g3 {[%clk 0:02:50.8]}
8... d6 {[%clk 0:02:45.9]} 9. Bg2 {[%clk 0:02:49.1]} 9... Qa5 {[%clk 0:02:42.8]}
10. O-O {[%clk 0:02:48.1]} 10... Nf6 {[%clk 0:02:42]} 11. e5 {[%clk 0:02:46.2]}
11... dxe5 {[%clk 0:02:41.7]} 12. dxe5 {[%clk 0:02:46.7]} 12... Qxe5 {[%clk
0:02:39.9]} 13. Re1 {[%clk 0:02:30.5]} 13... O-O {[%clk 0:02:31.6]} 14. Nd4
{[%clk 0:02:29.3]} 14... Qa5 {[%clk 0:02:20.2]} 15. Qf3 {[%clk 0:02:17.7]} 15...
Bg4 {[%clk 0:02:12.2]} 16. Qe3 {[%clk 0:02:18]} 16... e5 {[%clk 0:01:52.1]} 17.
Nb3 {[%clk 0:02:11.6]} 17... Qc7 {[%clk 0:01:50.7]} 18. Nc5 {[%clk 0:02:03.2]}
18... b6 {[%clk 0:01:46.9]} 19. Nd3 {[%clk 0:01:55.9]} 19... Nbd7 {[%clk
0:01:44.9]} 20. Nb4 {[%clk 0:01:49.2]} 20... c5 {[%clk 0:01:06.1]} 21. Nbd5
{[%clk 0:01:45.9]} 21... Qb8 {[%clk 0:00:52.9]} 22. Nxf6+ {[%clk 0:01:42.3]}
22... Nxf6 {[%clk 0:00:50.7]} 23. Bxf6 {[%clk 0:01:13.4]} 23... Bxf6 {[%clk
0:00:48.3]} 24. Nd5 {[%clk 0:01:14]} 24... Bg7 {[%clk 0:00:39.5]} 25. Ne7+
{[%clk 0:01:06.9]} 25... Kh7 {[%clk 0:00:39.2]} 26. c4 {[%clk 0:01:06.7]} 26...
Qd6 {[%clk 0:00:32.6]} 27. Bxa8 {[%clk 0:01:05.8]} 27... Rxa8 {[%clk 0:00:30.6]}
28. Nd5 {[%clk 0:01:06.3]} 28... Re8 {[%clk 0:00:27.7]} 29. f3 {[%clk
0:01:06.4]} 29... Bf5 {[%clk 0:00:25.8]} 30. Rbd1 {[%clk 0:01:06.9]} 30... e4
{[%clk 0:00:23.3]} 31. fxe4 {[%clk 0:01:03.4]} 31... Rxe4 {[%clk 0:00:15.3]} 32.
Qf3 {[%clk 0:01:01.9]} 32... Rxc4 {[%clk 0:00:11.3]} 33. Ne3 {[%clk 0:01:01.3]}
33... Bd4 {[%clk 0:00:07.3]} 34. Kh2 {[%clk 0:01:00.3]} 34... Qe6 {[%clk
0:00:00.6]} 35. Nxc4 {[%clk 0:00:38.8]} 35... Qxc4 {[%clk 0:00:00.8]} 36. Qb3
{[%clk 0:00:36]} 36... Qxb3 {[%clk 0:00:01]} 37. axb3 {[%clk 0:00:36.2]} 37...
Bc2 {[%clk 0:00:01.7]} 38. Rc1 {[%clk 0:00:21.2]} 38... Bxb3 {[%clk 0:00:02]}
39. Re7 {[%clk 0:00:22.1]} 39... Be6 {[%clk 0:00:02.1]} 40. Rxa7 {[%clk
0:00:21.4]} 40... c4 {[%clk 0:00:02.6]} 41. Rd1 {[%clk 0:00:19.6]} 41... Bc5
{[%clk 0:00:02.3]} 42. Re1 {[%clk 0:00:17.4]} 42... Kg8 {[%clk 0:00:01.3]} 43.
Rd1 {[%clk 0:00:16.6]} 43... Kf8 {[%clk 0:00:01.2]} 44. Rd8+ {[%clk 0:00:17.1]}
44... Kg7 {[%clk 0:00:01.6]} 45. Re8 {[%clk 0:00:17.8]} 45... Kf6 {[%clk
0:00:01.8]} 46. Rc8 {[%clk 0:00:17.2]} 46... c3 {[%clk 0:00:01.5]} 47. Rb8
{[%clk 0:00:18.1]} 47... c2 {[%clk 0:00:01.7]} 48. Ra1 {[%clk 0:00:18.3]} 48...
Be3 {[%clk 0:00:01.6]} 49. Rb7 {[%clk 0:00:17]} 49... c1=Q {[%clk 0:00:01.5]}
50. Rxc1 {[%clk 0:00:17.6]} 50... Bxc1 {[%clk 0:00:02.4]} 51. Rxb6 {[%clk
0:00:18.3]} 51... Ba3 {[%clk 0:00:02.6]} 52. Ra6 {[%clk 0:00:18.1]} 52... Bc5
{[%clk 0:00:02.7]} 53. Ra5 {[%clk 0:00:18.4]} 53... Bd4 {[%clk 0:00:02.8]} 54.
Ra6 {[%clk 0:00:18.8]} 54... Be5 {[%clk 0:00:03.7]} 55. Ra4 {[%clk 0:00:19.3]}
55... Bd6 {[%clk 0:00:03.8]} 56. Ra6 {[%clk 0:00:20.2]} 56... Ke7 {[%clk
0:00:04.7]} 57. Ra7+ {[%clk 0:00:20.5]} 57... Bd7 {[%clk 0:00:05.6]} 58. Ra6
{[%clk 0:00:21.4]} 58... Ke6 {[%clk 0:00:05.9]} 59. Ra7 {[%clk 0:00:22]} 59...
f5 {[%clk 0:00:06.4]} 60. Ra6 {[%clk 0:00:22.9]} 60... f4 {[%clk 0:00:06.8]} 61.
gxf4 {[%clk 0:00:22.5]} 61... Bb5 {[%clk 0:00:07.2]} 62. Rb6 {[%clk 0:00:21.7]}
62... Bd3 {[%clk 0:00:07.6]} 63. Kg3 {[%clk 0:00:22]} 63... Bf5 {[%clk 0:00:08]}
64. Ra6 {[%clk 0:00:22.1]} 64... Kd7 {[%clk 0:00:08.4]} 65. Ra7+ {[%clk
0:00:22.5]} 65... Kc6 {[%clk 0:00:08.6]} 66. Ra6+ {[%clk 0:00:23.1]} 66... Kd5
{[%clk 0:00:09]} 67. Ra5+ {[%clk 0:00:23.6]} 67... Bc5 {[%clk 0:00:09.5]} 68.
Ra6 {[%clk 0:00:22.7]} 68... Kc4 {[%clk 0:00:09.5]} 69. Ra4+ {[%clk 0:00:23.2]}
69... Bb4 {[%clk 0:00:09.6]} 70. Ra6 {[%clk 0:00:23.7]} 70... Kc3 {[%clk
0:00:09.8]} 71. Kf3 {[%clk 0:00:23]} 71... Be7 {[%clk 0:00:08.2]} 72. Rc6+
{[%clk 0:00:22.6]} 72... Kd4 {[%clk 0:00:07.7]} 73. Kg3 {[%clk 0:00:22.2]} 73...
Kd5 {[%clk 0:00:07.1]} 74. Ra6 {[%clk 0:00:22.4]} 74... Bd6 {[%clk 0:00:07.6]}
75. Ra5+ {[%clk 0:00:21.9]} 75... Bc5 {[%clk 0:00:08.1]} 76. Ra4 {[%clk
0:00:22]} 76... Bd4 {[%clk 0:00:08.1]} 77. Ra5+ {[%clk 0:00:22.4]} 77... Ke4
{[%clk 0:00:08.3]} 78. Ra4 {[%clk 0:00:23]} 78... Ke3 {[%clk 0:00:08.4]} 79.
Ra3+ {[%clk 0:00:23.5]} 79... Bd3 {[%clk 0:00:08.6]} 80. Rb3 {[%clk 0:00:22.4]}
80... Bc5 {[%clk 0:00:07.1]} 81. Rb8 {[%clk 0:00:12.7]} 81... Bd6 {[%clk
0:00:06.3]} 82. Re8+ {[%clk 0:00:13.3]} 82... Be4 {[%clk 0:00:06.1]} 83. Re6
{[%clk 0:00:13.8]} 83... Bxf4+ {[%clk 0:00:06]} 84. Kh3 {[%clk 0:00:14.7]} 84...
Kf3 {[%clk 0:00:05.5]} 85. Rxg6 {[%clk 0:00:13.9]} 85... Bf5+ {[%clk 0:00:05.1]}
86. Rg4 {[%clk 0:00:13.8]} 86... Bxg4# {[%clk 0:00:05.2]} 0-1

[Event "Early-Titled-Tuesday-Blitz-May-28-2024"]
[Site "Chess.com"]
[Date "2024.05.28"]
[Round "10"]
[White "Stanbad1"]
[Black "BardArtem"]
[Result "1-0"]
[WhiteElo "2652"]
[BlackElo "2793"]
[TimeControl "180+1"]
[EndTime "10:00:10 PDT"]
[Termination "Stanbad1 won on time"]

1. d4 {[%clk 0:03:00.9]} 1... d5 {[%clk 0:02:57.4]} 2. Nc3 {[%clk 0:03:00]} 2...
Nf6 {[%clk 0:02:57.4]} 3. Bf4 {[%clk 0:02:56.5]} 3... c5 {[%clk 0:02:57.3]} 4.
e4 {[%clk 0:02:56]} 4... Nxe4 {[%clk 0:02:50.6]} 5. Nxe4 {[%clk 0:02:53.3]} 5...
dxe4 {[%clk 0:02:51.5]} 6. dxc5 {[%clk 0:02:53.6]} 6... Qxd1+ {[%clk 0:02:52.4]}
7. Rxd1 {[%clk 0:02:52.9]} 7... Bd7 {[%clk 0:02:53.3]} 8. Bc4 {[%clk 0:02:52]}
8... f6 {[%clk 0:02:46.1]} 9. c3 {[%clk 0:02:51]} 9... e5 {[%clk 0:02:46]} 10.
Be3 {[%clk 0:02:50.6]} 10... f5 {[%clk 0:02:35.2]} 11. b4 {[%clk 0:02:49.8]}
11... a5 {[%clk 0:02:28.7]} 12. a3 {[%clk 0:02:38.1]} 12... axb4 {[%clk
0:02:24.9]} 13. axb4 {[%clk 0:02:39]} 13... Nc6 {[%clk 0:02:15.7]} 14. f4 {[%clk
0:02:36.3]} 14... exf4 {[%clk 0:01:57.7]} 15. Bxf4 {[%clk 0:02:34.5]} 15... g6
{[%clk 0:01:58.3]} 16. Ne2 {[%clk 0:02:32.9]} 16... Bg7 {[%clk 0:01:57.9]} 17.
O-O {[%clk 0:02:31.6]} 17... Ne5 {[%clk 0:01:52.5]} 18. Bd5 {[%clk 0:02:28.9]}
18... Bc6 {[%clk 0:01:43]} 19. Bxc6+ {[%clk 0:02:17.7]} 19... bxc6 {[%clk
0:01:39.2]} 20. Nd4 {[%clk 0:02:16.6]} 20... Rc8 {[%clk 0:00:51.3]} 21. Ne6
{[%clk 0:02:10.9]} 21... Bf6 {[%clk 0:00:51.6]} 22. Rd6 {[%clk 0:02:09.7]} 22...
Nd3 {[%clk 0:00:46.2]} 23. Bd2 {[%clk 0:02:04.1]} 23... Ke7 {[%clk 0:00:42.8]}
24. Nd4 {[%clk 0:02:01.7]} 24... Bxd4+ {[%clk 0:00:37.5]} 25. cxd4 {[%clk
0:01:58.8]} 25... h6 {[%clk 0:00:28.3]} 26. Rxg6 {[%clk 0:01:57.4]} 26... Rhf8
{[%clk 0:00:20.2]} 27. Bxh6 {[%clk 0:01:54.7]} 27... Rf7 {[%clk 0:00:20.6]} 28.
Bg5+ {[%clk 0:01:54.9]} 28... Kd7 {[%clk 0:00:21.1]} 29. Rd6+ {[%clk 0:01:51.8]}
29... Kc7 {[%clk 0:00:21.6]} 30. b5 {[%clk 0:01:50.4]} 30... cxb5 {[%clk
0:00:18.9]} 31. Rd5 {[%clk 0:01:48.5]} 31... Re8 {[%clk 0:00:14.9]} 32. g3
{[%clk 0:01:39.2]} 32... e3 {[%clk 0:00:13]} 33. Rdxf5 {[%clk 0:01:24.3]} 33...
Rxf5 {[%clk 0:00:13.9]} 34. Rxf5 {[%clk 0:01:24.6]} 34... e2 {[%clk 0:00:14.6]}
35. Bd2 {[%clk 0:01:25.3]} 35... e1=Q+ {[%clk 0:00:07.3]} 36. Bxe1 {[%clk
0:01:25.3]} 36... Rxe1+ {[%clk 0:00:08.2]} 37. Kg2 {[%clk 0:01:25.5]} 37... Re2+
{[%clk 0:00:08.8]} 38. Kf1 {[%clk 0:01:17.7]} 38... Rxh2 {[%clk 0:00:08.7]} 39.
d5 {[%clk 0:01:17.8]} 39... Nxc5 {[%clk 0:00:08.2]} 40. Rf6 {[%clk 0:01:16.7]}
40... Ne4 {[%clk 0:00:03]} 41. Rc6+ {[%clk 0:01:15.3]} 41... Kb7 {[%clk
0:00:03.6]} 42. g4 {[%clk 0:01:13.6]} 42... b4 {[%clk 0:00:02.1]} 43. Kg1 {[%clk
0:01:12.1]} 43... Rh4 {[%clk 0:00:02.4]} 44. Rc4 {[%clk 0:01:10.9]} 44... Rxg4+
{[%clk 0:00:03]} 45. Kh2 {[%clk 0:01:09.2]} 45... Nf6 {[%clk 0:00:02.6]} 46. Rc5
{[%clk 0:01:05.6]} 46... Rg5 {[%clk 0:00:02.8]} 47. Rb5+ {[%clk 0:01:04.9]}
47... Kc7 {[%clk 0:00:03.4]} 48. Rxb4 {[%clk 0:01:04.9]} 48... Nxd5 {[%clk
0:00:03.7]} 49. Re4 {[%clk 0:01:02.6]} 49... Kd6 {[%clk 0:00:03.8]} 50. Kh3
{[%clk 0:01:02.1]} 50... Rg8 {[%clk 0:00:03.5]} 51. Rg4 {[%clk 0:01:01.8]} 51...
Ra8 {[%clk 0:00:02.9]} 52. Re4 {[%clk 0:01:00.7]} 52... Nf6 {[%clk 0:00:01.8]}
53. Re2 {[%clk 0:00:59.5]} 53... Nd7 {[%clk 0:00:01.5]} 54. Kg4 {[%clk
0:00:59.1]} 54... Ne5+ {[%clk 0:00:02.1]} 55. Kf4 {[%clk 0:00:58.8]} 55... Ra4+
{[%clk 0:00:01.4]} 56. Re4 {[%clk 0:00:58.3]} 56... Ra5 {[%clk 0:00:01.5]} 57.
Rd4+ {[%clk 0:00:56.1]} 57... Ke6 {[%clk 0:00:01.8]} 58. Re4 {[%clk 0:00:55.4]}
58... Kf6 {[%clk 0:00:02.1]} 59. Rd4 {[%clk 0:00:54.4]} 59... Ng6+ {[%clk
0:00:02.5]} 60. Kg4 {[%clk 0:00:52.4]} 60... Rg5+ {[%clk 0:00:02.1]} 61. Kf3
{[%clk 0:00:52.4]} 61... Ne5+ {[%clk 0:00:02.3]} 62. Ke4 {[%clk 0:00:49.7]}
62... Ke6 {[%clk 0:00:02]} 63. Kf4 {[%clk 0:00:46.5]} 63... Rh5 {[%clk
0:00:02.1]} 64. Re4 {[%clk 0:00:45.2]} 64... Kd6 {[%clk 0:00:02.6]} 65. Re2
{[%clk 0:00:43.7]} 65... Rh4+ {[%clk 0:00:01.7]} 66. Kf5 {[%clk 0:00:43.7]}
66... Rh5+ {[%clk 0:00:01.4]} 67. Kf4 {[%clk 0:00:44]} 67... Ke6 {[%clk
0:00:01.8]} 68. Re4 {[%clk 0:00:43.4]} 68... Rh4+ {[%clk 0:00:01.4]} 69. Ke3
{[%clk 0:00:43.1]} 69... Rh3+ {[%clk 0:00:02.1]} 70. Kf2 {[%clk 0:00:40.3]}
70... Kf5 {[%clk 0:00:02.2]} 71. Rd4 {[%clk 0:00:39.6]} 71... Ng4+ {[%clk
0:00:02.1]} 72. Kg2 {[%clk 0:00:39.9]} 72... Ra3 {[%clk 0:00:02.4]} 73. Rb4
{[%clk 0:00:39.2]} 73... Kg5 {[%clk 0:00:02.8]} 74. Rb8 {[%clk 0:00:35.6]} 74...
Ne5 {[%clk 0:00:01.8]} 75. Rf8 {[%clk 0:00:34.9]} 75... Ng6 {[%clk 0:00:01.8]}
76. Rf7 {[%clk 0:00:32.9]} 76... Nf4+ {[%clk 0:00:02]} 77. Kf2 {[%clk
0:00:31.8]} 77... Kg4 {[%clk 0:00:01.3]} 78. Rg7+ {[%clk 0:00:32.1]} 78... Kf5
{[%clk 0:00:01.9]} 79. Rf7+ {[%clk 0:00:31.9]} 79... Ke5 {[%clk 0:00:02.6]} 80.
Re7+ {[%clk 0:00:32]} 80... Kd4 {[%clk 0:00:02.7]} 81. Re8 {[%clk 0:00:30]}
81... Rd3 {[%clk 0:00:02]} 82. Rd8+ {[%clk 0:00:29.4]} 82... Nd5 {[%clk
0:00:02.5]} 83. Re8 {[%clk 0:00:28.8]} 83... Nf6 {[%clk 0:00:01.8]} 84. Re6
{[%clk 0:00:28.3]} 84... Ne4+ {[%clk 0:00:02.1]} 85. Kg2 {[%clk 0:00:27.4]}
85... Rd2+ {[%clk 0:00:01.9]} 86. Kf1 {[%clk 0:00:26.4]} 86... Ke3 {[%clk
0:00:02.4]} 87. Ra6 {[%clk 0:00:22.4]} 87... Rf2+ {[%clk 0:00:02.3]} 88. Kg1
{[%clk 0:00:22.3]} 88... Rb2 {[%clk 0:00:02.6]} 89. Ra3+ {[%clk 0:00:22.3]}
89... Kf4 {[%clk 0:00:03.1]} 90. Rd3 {[%clk 0:00:22.2]} 1-0